[Event "*** Titled Tuesday Blitz"]
[Site "Chess.com"]
[Date "2021.02.16"]
[Round "3"]
[White "sergivila"]
[Black "Skatchkov_V"]
[Result "0-1"]
[WhiteElo "2301"]
[BlackElo "2518"]
[TimeControl "180+1"]
[EndTime "10:28:30 PST"]
[Termination "Skatchkov_V won by resignation"]

1. e4 {[%clk 0:03:00.9]} 1... e5 {[%clk 0:02:59.7]} 2. Nf3 {[%clk 0:03:00.4]}
2... d5 {[%clk 0:03:00.2]} 3. exd5 {[%clk 0:02:58.4]} 3... e4 {[%clk 0:02:59.1]}
4. Qe2 {[%clk 0:02:57.9]} 4... Nf6 {[%clk 0:02:59.5]} 5. Nc3 {[%clk 0:02:57.1]}
5... Be7 {[%clk 0:03:00.1]} 6. Nxe4 {[%clk 0:02:55.8]} 6... O-O {[%clk 0:03:00]}
7. Nxf6+ {[%clk 0:02:51.5]} 7... Bxf6 {[%clk 0:03:00.9]} 8. Qd1 {[%clk
0:02:51.7]} 8... Qxd5 {[%clk 0:02:57.9]} 9. Be2 {[%clk 0:02:51.7]} 9... c5
{[%clk 0:02:56.7]} 10. O-O {[%clk 0:02:51]} 10... Nc6 {[%clk 0:02:57.2]} 11. d3
{[%clk 0:02:50.2]} 11... Bf5 {[%clk 0:02:55.3]} 12. Nd2 {[%clk 0:02:44.6]} 12...
Nd4 {[%clk 0:02:51.3]} 13. Nc4 {[%clk 0:02:40.2]} 13... Nxe2+ {[%clk 0:02:30.7]}
14. Qxe2 {[%clk 0:02:41.1]} 14... Rfe8 {[%clk 0:02:29]} 15. Qd1 {[%clk
0:02:37.4]} 15... Qc6 {[%clk 0:02:21.1]} 16. a4 {[%clk 0:02:32.4]} 16... Rad8
{[%clk 0:02:18.2]} 17. Bd2 {[%clk 0:02:16.1]} 17... Be6 {[%clk 0:02:00]} 18. Na5
{[%clk 0:01:45.9]} 18... Qd7 {[%clk 0:01:56.9]} 19. b3 {[%clk 0:01:00.7]} 19...
Bxa1 {[%clk 0:01:47.1]} 20. Qxa1 {[%clk 0:01:01.6]} 20... b6 {[%clk 0:01:46.5]}
21. Nc4 {[%clk 0:01:01]} 21... Bxc4 {[%clk 0:01:46.9]} 22. bxc4 {[%clk
0:01:01.6]} 22... Re2 {[%clk 0:01:47.3]} 23. Bc3 {[%clk 0:00:55.2]} 23... f6
{[%clk 0:01:47.6]} 24. Qa2 {[%clk 0:00:51.7]} 24... Qxd3 {[%clk 0:01:39]} 25.
Qb3 {[%clk 0:00:46.8]} 25... Rxc2 {[%clk 0:01:34.4]} 0-1

[Event "*** Titled Tuesday Blitz"]
[Site "Chess.com"]
[Date "2021.02.16"]
[Round "3"]
[White "kuban1991"]
[Black "IMAghasiyevKamal"]
[Result "1-0"]
[WhiteElo "2879"]
[BlackElo "2524"]
[TimeControl "180+1"]
[EndTime "10:28:39 PST"]
[Termination "kuban1991 won by resignation"]

1. Nf3 {[%clk 0:02:58]} 1... d5 {[%clk 0:02:58.8]} 2. g3 {[%clk 0:02:58.2]} 2...
Nf6 {[%clk 0:02:58.6]} 3. Bg2 {[%clk 0:02:58.4]} 3... g6 {[%clk 0:02:51.1]} 4.
O-O {[%clk 0:02:58.7]} 4... Bg7 {[%clk 0:02:51.4]} 5. d4 {[%clk 0:02:59.6]} 5...
O-O {[%clk 0:02:51.3]} 6. Nbd2 {[%clk 0:03:00.2]} 6... c6 {[%clk 0:02:42.4]} 7.
c3 {[%clk 0:02:59.8]} 7... Bf5 {[%clk 0:02:37.1]} 8. Re1 {[%clk 0:02:59.7]} 8...
a5 {[%clk 0:02:32.1]} 9. Nh4 {[%clk 0:02:59.5]} 9... Bd7 {[%clk 0:02:31.4]} 10.
e4 {[%clk 0:02:57.1]} 10... dxe4 {[%clk 0:02:31.7]} 11. Nxe4 {[%clk 0:02:58]}
11... Nxe4 {[%clk 0:02:31.9]} 12. Rxe4 {[%clk 0:02:57.6]} 12... Na6 {[%clk
0:02:17.5]} 13. Bg5 {[%clk 0:02:57.5]} 13... Be6 {[%clk 0:02:15.3]} 14. Qe2
{[%clk 0:02:52]} 14... Nc7 {[%clk 0:02:13.6]} 15. Re1 {[%clk 0:02:47.7]} 15...
a4 {[%clk 0:02:09.7]} 16. a3 {[%clk 0:02:47.3]} 16... Re8 {[%clk 0:02:01.5]} 17.
Nf3 {[%clk 0:02:42]} 17... Qd5 {[%clk 0:01:45.7]} 18. h4 {[%clk 0:02:35.5]}
18... Qb5 {[%clk 0:01:42.6]} 19. Qd2 {[%clk 0:02:31.7]} 19... Nd5 {[%clk
0:01:01.5]} 20. Rxe6 {[%clk 0:02:28.2]} 20... fxe6 {[%clk 0:01:01.6]} 21. h5
{[%clk 0:02:25.1]} 21... Rf8 {[%clk 0:00:47.8]} 22. hxg6 {[%clk 0:02:23]} 22...
hxg6 {[%clk 0:00:48.1]} 23. Rxe6 {[%clk 0:02:23.7]} 23... Bf6 {[%clk 0:00:43.2]}
24. Ne5 {[%clk 0:02:10.3]} 24... Nc7 {[%clk 0:00:26.2]} 25. Rxe7 {[%clk
0:02:10.3]} 25... Bxe7 {[%clk 0:00:18]} 26. Bxe7 {[%clk 0:02:11.2]} 26... Ne6
{[%clk 0:00:08.5]} 27. Qh6 {[%clk 0:02:08.5]} 27... Qd3 {[%clk 0:00:08.6]} 28.
Nxd3 {[%clk 0:02:06.8]} 1-0

[Event "*** Titled Tuesday Blitz"]
[Site "Chess.com"]
[Date "2021.02.16"]
[Round "3"]
[White "MarkoPe"]
[Black "1random"]
[Result "0-1"]
[WhiteElo "2206"]
[BlackElo "2382"]
[TimeControl "180+1"]
[EndTime "10:28:43 PST"]
[Termination "1random won by resignation"]

1. e4 {[%clk 0:02:59.8]} 1... f5 {[%clk 0:02:59.7]} 2. exf5 {[%clk 0:02:59.5]}
2... Nf6 {[%clk 0:03:00.2]} 3. d4 {[%clk 0:02:58.7]} 3... d5 {[%clk 0:03:00.6]}
4. Bd3 {[%clk 0:02:58.3]} 4... c5 {[%clk 0:03:01.3]} 5. dxc5 {[%clk 0:02:58.2]}
5... e6 {[%clk 0:03:02]} 6. fxe6 {[%clk 0:02:57.9]} 6... Bxc5 {[%clk 0:03:02.7]}
7. Nf3 {[%clk 0:02:57.3]} 7... O-O {[%clk 0:03:03.4]} 8. O-O {[%clk 0:02:53.7]}
8... Bxe6 {[%clk 0:03:03.9]} 9. Nc3 {[%clk 0:02:53.4]} 9... Nc6 {[%clk 0:03:03]}
10. Bg5 {[%clk 0:02:51.6]} 10... h6 {[%clk 0:03:00.3]} 11. Bh4 {[%clk
0:02:50.7]} 11... Qd7 {[%clk 0:02:57.7]} 12. Re1 {[%clk 0:02:40.8]} 12... Bg4
{[%clk 0:02:56.5]} 13. Be2 {[%clk 0:02:32.5]} 13... Rae8 {[%clk 0:02:50]} 14.
Bxf6 {[%clk 0:02:29.7]} 14... Rxf6 {[%clk 0:02:50.6]} 15. Qxd5+ {[%clk 0:02:28]}
15... Qxd5 {[%clk 0:02:50.9]} 16. Nxd5 {[%clk 0:02:28.9]} 16... Rfe6 {[%clk
0:02:43.8]} 17. Nc7 {[%clk 0:02:05]} 17... Rxe2 {[%clk 0:02:44.1]} 18. Nxe8
{[%clk 0:02:04.6]} 18... Rxf2 {[%clk 0:02:40.4]} 19. b4 {[%clk 0:00:33.5]} 19...
Nxb4 {[%clk 0:02:38.3]} 20. Re5 {[%clk 0:00:32.8]} 20... Rxc2+ {[%clk 0:02:24]}
21. Rxc5 {[%clk 0:00:32.4]} 21... Rxc5 {[%clk 0:02:24.9]} 22. Nd6 {[%clk
0:00:30.8]} 22... Rd5 {[%clk 0:02:18.1]} 23. Nxb7 {[%clk 0:00:28.5]} 23... Bc8
{[%clk 0:02:18.2]} 24. Rb1 {[%clk 0:00:23.1]} 24... Nxa2 {[%clk 0:02:15.2]} 25.
Kf2 {[%clk 0:00:18]} 25... Nc3 {[%clk 0:02:13.7]} 26. Rb3 {[%clk 0:00:18.4]}
26... Rd3 {[%clk 0:02:07.7]} 27. Ne5 {[%clk 0:00:17.4]} 27... Ne4+ {[%clk
0:02:07.9]} 28. Ke2 {[%clk 0:00:16.2]} 28... Rxb3 {[%clk 0:02:08.8]} 29. Nd6
{[%clk 0:00:15]} 29... Nxd6 {[%clk 0:02:09]} 0-1

[Event "*** Titled Tuesday Blitz"]
[Site "Chess.com"]
[Date "2021.02.16"]
[Round "3"]
[White "korkmaz16"]
[Black "miredenizdogan"]
[Result "0-1"]
[WhiteElo "2393"]
[BlackElo "2262"]
[TimeControl "180+1"]
[EndTime "10:28:48 PST"]
[Termination "miredenizdogan won by resignation"]

1. e4 {[%clk 0:03:00.9]} 1... e6 {[%clk 0:02:58.9]} 2. d4 {[%clk 0:02:59.9]}
2... d5 {[%clk 0:02:59.8]} 3. e5 {[%clk 0:02:59.6]} 3... c5 {[%clk 0:03:00]} 4.
c3 {[%clk 0:02:59.2]} 4... Nc6 {[%clk 0:03:00.9]} 5. Nf3 {[%clk 0:02:59.1]} 5...
Qb6 {[%clk 0:03:01.5]} 6. Bd3 {[%clk 0:02:52]} 6... Bd7 {[%clk 0:03:00.6]} 7.
dxc5 {[%clk 0:02:51]} 7... Bxc5 {[%clk 0:02:59.8]} 8. b4 {[%clk 0:02:50.4]} 8...
Bxf2+ {[%clk 0:02:58.3]} 9. Ke2 {[%clk 0:02:50.3]} 9... Nxb4 {[%clk 0:02:32.1]}
10. cxb4 {[%clk 0:02:48.9]} 10... Bd4 {[%clk 0:02:31.9]} 11. Nxd4 {[%clk
0:02:48.8]} 11... Qxd4 {[%clk 0:02:32.8]} 12. Qb3 {[%clk 0:02:42.4]} 12... Qxe5+
{[%clk 0:02:23.5]} 13. Kd1 {[%clk 0:01:46.9]} 13... Nf6 {[%clk 0:02:13.7]} 14.
Bb2 {[%clk 0:01:44.9]} 14... Qg5 {[%clk 0:02:10.5]} 15. Qc2 {[%clk 0:01:35.9]}
15... Ng4 {[%clk 0:02:04.3]} 16. Bd4 {[%clk 0:01:04.1]} 16... e5 {[%clk
0:01:47.1]} 17. Bg1 {[%clk 0:01:00.3]} 17... e4 {[%clk 0:01:35.6]} 18. Be2
{[%clk 0:00:55.8]} 18... Rc8 {[%clk 0:01:19.1]} 19. Qd2 {[%clk 0:00:55.1]} 19...
e3 {[%clk 0:01:15.7]} 20. Qd4 {[%clk 0:00:45.5]} 20... Ba4+ {[%clk 0:01:12.4]}
21. Ke1 {[%clk 0:00:45.2]} 21... Rc1+ {[%clk 0:01:11.6]} 22. Bd1 {[%clk
0:00:45.7]} 22... Rxd1+ {[%clk 0:01:11.8]} 23. Ke2 {[%clk 0:00:45.5]} 23... Rxd4
{[%clk 0:01:10.3]} 0-1

[Event "*** Titled Tuesday Blitz"]
[Site "Chess.com"]
[Date "2021.02.16"]
[Round "3"]
[White "NewBornNow"]
[Black "frenchpin"]
[Result "1-0"]
[WhiteElo "2779"]
[BlackElo "2508"]
[TimeControl "180+1"]
[EndTime "10:28:49 PST"]
[Termination "NewBornNow won by resignation"]

1. e4 {[%clk 0:03:00]} 1... e6 {[%clk 0:03:00.9]} 2. d4 {[%clk 0:02:59.2]} 2...
d5 {[%clk 0:03:01]} 3. e5 {[%clk 0:02:58.2]} 3... c5 {[%clk 0:03:00.6]} 4. c3
{[%clk 0:02:58.2]} 4... Qb6 {[%clk 0:03:00.9]} 5. Nf3 {[%clk 0:02:58]} 5... Nc6
{[%clk 0:03:01.2]} 6. Bd3 {[%clk 0:02:56.4]} 6... cxd4 {[%clk 0:03:01.4]} 7.
cxd4 {[%clk 0:02:56.4]} 7... Bd7 {[%clk 0:03:02]} 8. Be2 {[%clk 0:02:51.3]} 8...
Nh6 {[%clk 0:02:53.6]} 9. Bxh6 {[%clk 0:02:49.7]} 9... Qxb2 {[%clk 0:02:52.4]}
10. Nbd2 {[%clk 0:02:48.8]} 10... gxh6 {[%clk 0:02:51.6]} 11. Rb1 {[%clk
0:02:48.2]} 11... Qxa2 {[%clk 0:02:15.4]} 12. Rxb7 {[%clk 0:02:46.9]} 12... Rb8
{[%clk 0:02:15.4]} 13. Rxb8+ {[%clk 0:02:45.5]} 13... Nxb8 {[%clk 0:02:16.3]}
14. O-O {[%clk 0:02:44.7]} 14... Bb4 {[%clk 0:02:13.4]} 15. Bd3 {[%clk
0:02:36.7]} 15... a5 {[%clk 0:02:09.2]} 16. Qe2 {[%clk 0:02:25.2]} 16... Qa3
{[%clk 0:01:32.8]} 17. g3 {[%clk 0:02:09.5]} 17... Ke7 {[%clk 0:01:27.4]} 18.
Qe3 {[%clk 0:02:06.2]} 18... Bb5 {[%clk 0:01:24.6]} 19. Bxb5 {[%clk 0:02:04.5]}
19... Qxe3 {[%clk 0:01:24.5]} 20. fxe3 {[%clk 0:02:04.5]} 20... Rc8 {[%clk
0:01:25]} 21. Kf2 {[%clk 0:02:00.3]} 21... Rc2 {[%clk 0:01:23.4]} 22. Ke2 {[%clk
0:02:00.1]} 22... Rb2 {[%clk 0:01:23.1]} 23. Rb1 {[%clk 0:01:59.3]} 23... Rc2
{[%clk 0:01:15.9]} 24. Kd1 {[%clk 0:01:58.5]} 24... Rc7 {[%clk 0:01:15.4]} 25.
Rc1 {[%clk 0:01:56.5]} 25... Rb7 {[%clk 0:01:15]} 26. Ba4 {[%clk 0:01:55.8]}
26... Na6 {[%clk 0:01:14.3]} 27. Rc8 {[%clk 0:01:54.8]} 27... Nc7 {[%clk
0:01:13.3]} 28. Nb3 {[%clk 0:01:49.2]} 28... Ra7 {[%clk 0:01:12.6]} 29. Nc5
{[%clk 0:01:47]} 29... h5 {[%clk 0:01:04.9]} 30. Ng5 {[%clk 0:01:45]} 30... h6
{[%clk 0:01:04.7]} 31. Nh7 {[%clk 0:01:44.1]} 31... Bxc5 {[%clk 0:00:52.7]} 32.
dxc5 {[%clk 0:01:42.7]} 32... Rb7 {[%clk 0:00:53.6]} 33. Nf6 {[%clk 0:01:42.2]}
33... Nb5 {[%clk 0:00:43.4]} 1-0

[Event "*** Titled Tuesday Blitz"]
[Site "Chess.com"]
[Date "2021.02.16"]
[Round "3"]
[White "geordie_derraugh"]
[Black "GigaQuparadze"]
[Result "0-1"]
[WhiteElo "2467"]
[BlackElo "2937"]
[TimeControl "180+1"]
[EndTime "10:28:51 PST"]
[Termination "GigaQuparadze won by checkmate"]

1. e4 {[%clk 0:03:00.9]} 1... c5 {[%clk 0:02:59.7]} 2. Nf3 {[%clk 0:02:59.9]}
2... Nc6 {[%clk 0:02:59.8]} 3. c3 {[%clk 0:02:59.1]} 3... d5 {[%clk 0:02:59.6]}
4. exd5 {[%clk 0:02:58.8]} 4... Qxd5 {[%clk 0:03:00.5]} 5. d4 {[%clk 0:02:59.1]}
5... e6 {[%clk 0:03:00.7]} 6. Na3 {[%clk 0:02:56.3]} 6... Nf6 {[%clk 0:03:00]}
7. Nb5 {[%clk 0:02:52.8]} 7... Qd8 {[%clk 0:02:59.7]} 8. Bf4 {[%clk 0:02:46.2]}
8... Nd5 {[%clk 0:02:59]} 9. Bg3 {[%clk 0:02:41.3]} 9... a6 {[%clk 0:02:58.7]}
10. Na3 {[%clk 0:02:32.1]} 10... cxd4 {[%clk 0:02:58.3]} 11. cxd4 {[%clk
0:02:28.9]} 11... Bb4+ {[%clk 0:02:56.2]} 12. Nd2 {[%clk 0:02:20.8]} 12... Nxd4
{[%clk 0:02:53.6]} 13. Qa4+ {[%clk 0:02:18.8]} 13... Bd7 {[%clk 0:02:49.7]} 14.
Qd1 {[%clk 0:02:16]} 14... Rc8 {[%clk 0:02:49]} 15. Bd3 {[%clk 0:02:15.4]} 15...
Qa5 {[%clk 0:02:45.6]} 16. Nb1 {[%clk 0:02:11.9]} 16... Nb3 {[%clk 0:02:34.4]}
17. Qxb3 {[%clk 0:01:52.4]} 17... Rc1+ {[%clk 0:02:32.6]} 18. Ke2 {[%clk
0:01:49.6]} 18... Rxh1 {[%clk 0:02:33]} 19. Nf1 {[%clk 0:01:44.2]} 19... O-O
{[%clk 0:02:25.4]} 20. a3 {[%clk 0:01:41.4]} 20... Be7 {[%clk 0:02:24.5]} 21.
Qxb7 {[%clk 0:01:36.5]} 21... Bb5 {[%clk 0:02:18]} 22. Bxb5 {[%clk 0:01:25.9]}
22... Qxb5+ {[%clk 0:02:18.9]} 23. Qxb5 {[%clk 0:01:25.5]} 23... axb5 {[%clk
0:02:19.8]} 24. Nbd2 {[%clk 0:01:25.5]} 24... f5 {[%clk 0:02:19.3]} 25. f4
{[%clk 0:01:14.3]} 25... g5 {[%clk 0:02:18.9]} 26. Kf3 {[%clk 0:00:56.5]} 26...
g4+ {[%clk 0:02:15.1]} 27. Ke2 {[%clk 0:00:51.1]} 27... Rc8 {[%clk 0:02:15.6]}
28. Kd3 {[%clk 0:00:41.2]} 28... Bf6 {[%clk 0:02:14.4]} 29. Rb1 {[%clk
0:00:35.5]} 29... h5 {[%clk 0:02:12.5]} 30. Nb3 {[%clk 0:00:15.1]} 30... h4
{[%clk 0:02:11.9]} 31. Bf2 {[%clk 0:00:15.1]} 31... Nxf4+ {[%clk 0:02:12.1]} 32.
Ke3 {[%clk 0:00:15.4]} 32... Nd5+ {[%clk 0:02:11.9]} 33. Ke2 {[%clk 0:00:13.6]}
33... Rc2+ {[%clk 0:02:10.4]} 34. Ke1 {[%clk 0:00:12.2]} 34... Nf4 {[%clk
0:02:10.4]} 35. Be3 {[%clk 0:00:11.1]} 35... Re2+ {[%clk 0:02:10]} 36. Kd1
{[%clk 0:00:10.2]} 36... Rxf1# {[%clk 0:02:10.3]} 0-1

[Event "*** Titled Tuesday Blitz"]
[Site "Chess.com"]
[Date "2021.02.16"]
[Round "3"]
[White "MagzyPotato"]
[Black "Gahan-MG"]
[Result "0-1"]
[WhiteElo "2420"]
[BlackElo "2641"]
[TimeControl "180+1"]
[EndTime "10:28:52 PST"]
[Termination "Gahan-MG won by resignation"]

1. d4 {[%clk 0:03:00.9]} 1... Nf6 {[%clk 0:02:59.9]} 2. c4 {[%clk 0:03:01.2]}
2... e5 {[%clk 0:02:59.5]} 3. dxe5 {[%clk 0:03:01.2]} 3... Ng4 {[%clk
0:02:59.9]} 4. Bf4 {[%clk 0:03:01.6]} 4... g5 {[%clk 0:02:59.9]} 5. Bg3 {[%clk
0:03:01.4]} 5... Bg7 {[%clk 0:02:58.9]} 6. Nf3 {[%clk 0:03:01.7]} 6... Nc6
{[%clk 0:02:57.3]} 7. h4 {[%clk 0:02:51.4]} 7... Ngxe5 {[%clk 0:02:57.2]} 8.
Nxe5 {[%clk 0:02:31.7]} 8... Nxe5 {[%clk 0:02:58.1]} 9. e3 {[%clk 0:02:31.9]}
9... g4 {[%clk 0:02:56.7]} 10. Nc3 {[%clk 0:02:29.6]} 10... h5 {[%clk
0:02:55.4]} 11. Be2 {[%clk 0:02:23.5]} 11... d6 {[%clk 0:02:55.5]} 12. Qc2
{[%clk 0:02:14.2]} 12... Be6 {[%clk 0:02:51.1]} 13. Ne4 {[%clk 0:01:50.8]} 13...
Qd7 {[%clk 0:02:38.2]} 14. Ng5 {[%clk 0:01:30.2]} 14... O-O-O {[%clk 0:02:33.1]}
15. Rd1 {[%clk 0:01:24.9]} 15... Bf5 {[%clk 0:02:27.7]} 16. e4 {[%clk 0:01:25]}
16... Bg6 {[%clk 0:02:27.6]} 17. f4 {[%clk 0:00:57.2]} 17... gxf3 {[%clk
0:02:24.7]} 18. gxf3 {[%clk 0:00:57.1]} 18... Kb8 {[%clk 0:02:21.4]} 19. Nh3
{[%clk 0:00:53.3]} 19... f5 {[%clk 0:02:10.7]} 20. Nf4 {[%clk 0:00:42.9]} 20...
fxe4 {[%clk 0:02:10.2]} 21. Nxg6 {[%clk 0:00:43]} 21... Nxg6 {[%clk 0:02:11.1]}
22. Qxe4 {[%clk 0:00:38.9]} 22... Qe8 {[%clk 0:01:59]} 23. Bd3 {[%clk
0:00:35.2]} 23... Bxb2 {[%clk 0:01:56.8]} 24. O-O {[%clk 0:00:32.8]} 24... Qxe4
{[%clk 0:01:52.4]} 25. Bxe4 {[%clk 0:00:33.7]} 25... Ne5 {[%clk 0:01:50.4]} 26.
Bxb7 {[%clk 0:00:31.4]} 26... Kxb7 {[%clk 0:01:48.1]} 27. Rb1 {[%clk 0:00:31.5]}
27... Nxc4 {[%clk 0:01:48.4]} 28. Rfc1 {[%clk 0:00:29]} 28... d5 {[%clk
0:01:45.5]} 29. Be5 {[%clk 0:00:28.7]} 29... Rhg8+ {[%clk 0:01:41.4]} 30. Kf2
{[%clk 0:00:28.7]} 30... Nxe5 {[%clk 0:01:40.9]} 0-1

[Event "*** Titled Tuesday Blitz"]
[Site "Chess.com"]
[Date "2021.02.16"]
[Round "3"]
[White "dretch"]
[Black "SanQui14"]
[Result "1-0"]
[WhiteElo "2839"]
[BlackElo "2446"]
[TimeControl "180+1"]
[EndTime "10:28:54 PST"]
[Termination "dretch won by resignation"]

1. d4 {[%clk 0:03:00.9]} 1... Nf6 {[%clk 0:02:58.4]} 2. c4 {[%clk 0:03:01.1]}
2... e6 {[%clk 0:02:58.5]} 3. Nc3 {[%clk 0:03:01.5]} 3... Bb4 {[%clk 0:02:59.2]}
4. Qc2 {[%clk 0:03:01.9]} 4... b6 {[%clk 0:02:58.6]} 5. e4 {[%clk 0:02:59.9]}
5... c5 {[%clk 0:02:56.8]} 6. a3 {[%clk 0:03:00.3]} 6... cxd4 {[%clk 0:02:48.9]}
7. axb4 {[%clk 0:02:59.6]} 7... dxc3 {[%clk 0:02:49.1]} 8. bxc3 {[%clk
0:02:57.4]} 8... d6 {[%clk 0:02:45]} 9. Bg5 {[%clk 0:02:45.9]} 9... h6 {[%clk
0:02:41.6]} 10. Bh4 {[%clk 0:02:43.8]} 10... Bb7 {[%clk 0:02:39.7]} 11. f3
{[%clk 0:02:39.3]} 11... Qc7 {[%clk 0:02:30.8]} 12. Qd2 {[%clk 0:02:17]} 12...
Nbd7 {[%clk 0:02:28.9]} 13. Rd1 {[%clk 0:02:07.8]} 13... d5 {[%clk 0:02:26.3]}
14. Bg3 {[%clk 0:02:06.6]} 14... Qc6 {[%clk 0:02:05.9]} 15. Ne2 {[%clk
0:01:56.8]} 15... Qxc4 {[%clk 0:01:50.8]} 16. Nd4 {[%clk 0:01:52.4]} 16... Qc8
{[%clk 0:01:45.2]} 17. Bd6 {[%clk 0:01:46.1]} 17... a6 {[%clk 0:01:30.5]} 18. e5
{[%clk 0:01:43.1]} 18... Ng8 {[%clk 0:01:27.9]} 19. Bd3 {[%clk 0:01:34.3]} 19...
Ne7 {[%clk 0:01:20.4]} 20. O-O {[%clk 0:01:30.3]} 20... Qd8 {[%clk 0:01:18.4]}
21. f4 {[%clk 0:01:28.8]} 21... Nc8 {[%clk 0:01:08.2]} 22. Nxe6 {[%clk 0:01:27]}
22... Qh4 {[%clk 0:00:50.2]} 23. g3 {[%clk 0:01:08.8]} 23... Qh3 {[%clk
0:00:49.2]} 24. Nxg7+ {[%clk 0:01:07.7]} 24... Kd8 {[%clk 0:00:48.9]} 25. Bf5
{[%clk 0:01:07.9]} 1-0

[Event "*** Titled Tuesday Blitz"]
[Site "Chess.com"]
[Date "2021.02.16"]
[Round "3"]
[White "davidkalashian"]
[Black "LogoCzar"]
[Result "1-0"]
[WhiteElo "2575"]
[BlackElo "2378"]
[TimeControl "180+1"]
[EndTime "10:28:56 PST"]
[Termination "davidkalashian won by resignation"]

1. d4 {[%clk 0:03:00.9]} 1... Nf6 {[%clk 0:02:58.4]} 2. c4 {[%clk 0:03:00]} 2...
e5 {[%clk 0:02:58.5]} 3. dxe5 {[%clk 0:02:56]} 3... Ne4 {[%clk 0:02:58.8]} 4.
Nf3 {[%clk 0:02:47.8]} 4... Nc6 {[%clk 0:02:56]} 5. Nbd2 {[%clk 0:02:45.4]} 5...
Bb4 {[%clk 0:02:51.5]} 6. a3 {[%clk 0:02:41.3]} 6... Bxd2+ {[%clk 0:02:49.9]} 7.
Bxd2 {[%clk 0:02:41.5]} 7... Nxd2 {[%clk 0:02:49.9]} 8. Qxd2 {[%clk 0:02:41.4]}
8... O-O {[%clk 0:02:49.6]} 9. e3 {[%clk 0:02:33.5]} 9... Re8 {[%clk 0:02:49.8]}
10. Be2 {[%clk 0:02:31.9]} 10... Qe7 {[%clk 0:02:50]} 11. Qc3 {[%clk 0:02:24.9]}
11... Nxe5 {[%clk 0:02:50.2]} 12. Nxe5 {[%clk 0:02:25.2]} 12... Qxe5 {[%clk
0:02:50.9]} 13. Qxe5 {[%clk 0:02:25.9]} 13... Rxe5 {[%clk 0:02:51.5]} 14. O-O-O
{[%clk 0:02:25.1]} 14... d6 {[%clk 0:02:51]} 15. Bf3 {[%clk 0:02:22.1]} 15...
Be6 {[%clk 0:02:46.2]} 16. Bxb7 {[%clk 0:02:18.4]} 16... Rb8 {[%clk 0:02:43.3]}
17. Bd5 {[%clk 0:02:18.9]} 17... Bxd5 {[%clk 0:02:42.1]} 18. Rxd5 {[%clk
0:02:18.8]} 18... Rxd5 {[%clk 0:02:38.2]} 19. cxd5 {[%clk 0:02:19.7]} 19... Rb5
{[%clk 0:02:37.1]} 20. Rd1 {[%clk 0:02:20.1]} 20... f5 {[%clk 0:02:35]} 21. Rd4
{[%clk 0:02:11.9]} 21... a5 {[%clk 0:02:31.2]} 22. Rc4 {[%clk 0:02:08.1]} 22...
Rxd5 {[%clk 0:02:22.9]} 23. Rxc7 {[%clk 0:02:07.5]} 23... h6 {[%clk 0:02:12.6]}
24. Rb7 {[%clk 0:02:02.2]} 24... Rc5+ {[%clk 0:02:04.6]} 25. Kd2 {[%clk
0:02:01.6]} 25... g5 {[%clk 0:01:57.9]} 26. a4 {[%clk 0:01:59.2]} 26... Rc4
{[%clk 0:01:55.2]} 27. b3 {[%clk 0:01:57.7]} 27... Rh4 {[%clk 0:01:54.4]} 28. h3
{[%clk 0:01:55.6]} 28... g4 {[%clk 0:01:54.7]} 29. hxg4 {[%clk 0:01:55.3]} 29...
fxg4 {[%clk 0:01:53.9]} 30. g3 {[%clk 0:01:52.2]} 30... Rh2 {[%clk 0:01:53.5]}
31. Ke2 {[%clk 0:01:52.1]} 31... h5 {[%clk 0:01:53.7]} 32. Rb5 {[%clk
0:01:51.8]} 32... Kg7 {[%clk 0:01:49.9]} 33. Rxa5 {[%clk 0:01:51.3]} 33... Kf6
{[%clk 0:01:50.3]} 34. Ra8 {[%clk 0:01:42.5]} 34... h4 {[%clk 0:01:50.1]} 35.
gxh4 {[%clk 0:01:41.5]} 35... g3 {[%clk 0:01:50]} 36. Rf8+ {[%clk 0:01:39.9]}
36... Ke7 {[%clk 0:01:49.6]} 37. Rf3 {[%clk 0:01:37.6]} 37... gxf2 {[%clk
0:01:41.3]} 38. Rxf2 {[%clk 0:01:37.5]} 38... Rxh4 {[%clk 0:01:41.4]} 39. Kd3
{[%clk 0:01:38.1]} 39... d5 {[%clk 0:01:40.5]} 40. Rf4 {[%clk 0:01:37.1]} 40...
Rh1 {[%clk 0:01:40.3]} 41. Kc3 {[%clk 0:01:35.9]} 41... Kd6 {[%clk 0:01:40.6]}
42. Rf6+ {[%clk 0:01:34]} 42... Ke5 {[%clk 0:01:39.4]} 43. Rf8 {[%clk
0:01:33.9]} 43... Rc1+ {[%clk 0:01:37.3]} 44. Kb4 {[%clk 0:01:33.5]} 44... Ke4
{[%clk 0:01:35.1]} 45. Re8+ {[%clk 0:01:31]} 45... Kd3 {[%clk 0:01:35.4]} 46.
Re5 {[%clk 0:01:30.8]} 46... Rc8 {[%clk 0:01:30.2]} 47. Rxd5+ {[%clk 0:01:30.3]}
47... Kxe3 {[%clk 0:01:30.5]} 48. a5 {[%clk 0:01:30.5]} 48... Ke4 {[%clk
0:01:30.4]} 49. Rd7 {[%clk 0:01:29.8]} 49... Rb8+ {[%clk 0:01:30.5]} 50. Ka4
{[%clk 0:01:30.4]} 50... Ke5 {[%clk 0:01:30.3]} 51. b4 {[%clk 0:01:31]} 51...
Ke6 {[%clk 0:01:30.8]} 52. Rd1 {[%clk 0:01:31]} 1-0